bitfinex-derivatives/quotes_SOLF0:USTF0_20260210
["timestamp","ask_amount","ask_price","bid_price","bid_amount"]
[1770705629920,98.7061,85.171,85.041,79.72633284]
[1770705630118,9.72018781,85.15,85.041,79.72633284]
[1770705630319,16.06858781,85.13,85.041,79.72633284]
[1770705630727,6.3484,85.13,85.041,79.72633284]
[1770705631116,6.3473,85.145,85.041,79.72633284]
[1770705631420,9.72018781,85.15,85.041,79.72633284]
[1770705631615,9.72018781,85.15,85.004,100.94485695]
[1770705631616,9.72018781,85.17,85.056,81.09852771]
[1770705631820,9.72018781,85.19,85.071,81.09852771]
[1770705632223,333.2225,85.226,85.071,81.09852771]
[1770705632424,6.3439,85.191,85.101,81.09852771]
[1770705632920,6.3439,85.191,85.103,81.09852771]
[1770705633127,6.3439,85.191,85.102,6.3505]
[1770705633128,6.3464,85.158,85.059,81.09852771]
[1770705633322,9.72018781,85.18,85.071,81.09852771]
[1770705633516,9.72018781,85.18,85.07,9.72018781]
[1770705633517,6.3453,85.172,85.074,81.09852771]
[1770705634225,9.72018781,85.22,85.111,81.09852771]
[1770705634821,6.343,85.203,85.111,81.09852771]
[1770705635325,9.72018781,85.24,85.111,81.09852771]
[1770705635522,6.342,85.217,85.128,81.02644259]
[1770705636027,6.342,85.217,85.131,81.02644259]
[1770705636224,6.342,85.217,85.13,9.72018781]
[1770705636225,6.3408,85.233,85.133,81.02644259]
[1770705636418,6.3408,85.233,85.151,81.02644259]
[1770705636623,9.72018781,85.26,85.151,81.02644259]
[1770705637018,6.3398,85.246,85.153,81.06425943]
[1770705637620,6.3398,85.246,85.161,81.07832012]
[1770705637816,6.3398,85.246,85.09,234.78]
[1770705637817,6.3445,85.183,85.092,81.07832012]
[1770705638017,9.72018781,85.2,85.092,81.07832012]
[1770705638222,9.72018781,85.18,85.094,81.07832012]
[1770705638425,6.3457,85.167,85.094,81.07832012]
[1770705639319,16.06488781,85.18,85.094,81.07832012]
[1770705640727,6.3436,85.194,85.11,6.3498]
[1770705640929,9.72018781,85.2,85.111,80.46918556]
[1770705641526,12.6778,85.258,85.111,80.46918556]
[1770705641527,6.3435,85.196,85.111,80.46918556]
[1770705641925,9.72018781,85.22,85.111,80.46918556]
[1770705643037,6.3444,85.184,85.111,80.46918556]
[1770705643226,9.72018781,85.22,85.111,80.46918556]
[1770705643627,6.3434,85.198,85.125,80.11993822]
[1770705643831,9.72018781,85.24,85.125,80.11993822]
[1770705644524,6.3424,85.21,85.138,81.01407243]
[1770705645328,6.3415,85.223,85.142,81.01407243]
[1770705646830,6.3423,85.212,85.145,80.9851203]
[1770705647132,9.72018781,85.24,85.145,80.9851203]
[1770705647928,6.3414,85.224,85.147,80.99707017]
[1770705648123,9.72018781,85.24,85.147,80.99707017]
[1770705648531,6.3423,85.213,85.147,80.99707017]
[1770705649036,9.72018781,85.24,85.147,80.99707017]
[1770705649232,118.0,85.239,85.103,81.09852771]
[1770705649439,9.72018781,85.19,85.103,81.09852771]
[1770705650237,9.72018781,85.2,85.103,81.09852771]
[1770705650434,9.72018781,85.21,85.103,81.09852771]
[1770705651138,6.3436,85.195,85.108,80.50521889]
[1770705651540,6.3436,85.195,85.112,6.3497]
[1770705651738,6.3436,85.195,85.113,80.51504036]
[1770705652134,6.3447,85.18,85.113,80.51504036]
[1770705652335,9.72018781,85.2,85.113,80.51504036]
[1770705653137,10.5167929,85.266,85.113,80.51504036]
[1770705653338,13.97198594,85.281,85.151,79.87883689]
[1770705653339,35.14,85.281,85.151,79.87883689]
[1770705653644,9.72018781,85.27,85.151,79.87883689]
[1770705653842,6.3399,85.245,85.151,79.87883689]
[1770705654234,6.3388,85.259,85.153,79.88681524]
[1770705654639,6.3388,85.259,85.171,77.92268471]
[1770705655331,9.68931182,85.27,85.171,77.92268471]
[1770705655536,6.3377,85.274,85.175,77.92268471]
[1770705656138,6.3377,85.274,85.178,77.92563875]
[1770705656752,8.65551497,85.324,85.12,9.68931182]
[1770705656753,6.3366,85.289,85.191,78.46322216]
[1770705657043,9.68931182,85.32,85.191,78.46322216]
[1770705657442,6.3368,85.287,85.196,78.46738459]
[1770705658044,6.3368,85.287,85.198,6.3433]
[1770705658345,6.3368,85.287,85.199,78.46738459]
[1770705658643,6.3368,85.287,85.211,78.46738459]
[1770705659046,6.3381,85.268,85.187,78.678137]
[1770705659249,9.68931182,85.3,85.187,78.678137]
[1770705659639,6.3381,85.269,85.19,78.6826771]
[1770705660644,35.14,85.319,85.19,78.6826771]
[1770705660645,6.3389,85.257,85.19,78.6826771]
[1770705660847,35.14,85.299,85.19,78.6826771]
[1770705661044,9.68931182,85.28,85.19,78.6826771]
[1770705661245,6.3381,85.269,85.192,78.57060931]
[1770705661446,118.0,85.268,85.192,78.57060931]
[1770705661747,6.3383,85.266,85.192,78.57060931]
[1770705663253,118.0,85.268,85.192,78.57060931]
[1770705663459,9.68931182,85.26,85.161,78.761086]
[1770705663659,118.0,85.259,85.161,78.761086]
[1770705664155,9.68931182,85.24,85.14,78.76556772]
[1770705664356,9.68931182,85.22,85.14,78.76556772]
[1770705664559,9.68931182,85.2,85.101,79.11260493]
[1770705665358,6.3434,85.198,85.123,79.11260493]
[1770705666055,6.3443,85.185,85.123,79.11260493]
[1770705667354,6.3434,85.197,85.123,79.11260493]
[1770705668954,6.3443,85.185,85.123,79.11260493]
[1770705670655,6.3435,85.196,85.123,79.11260493]
[1770705670958,9.68931182,85.21,85.125,78.83273567]
[1770705671563,9.68931182,85.21,85.13,78.83273567]
[1770705673761,6.3444,85.185,85.13,78.83273567]
[1770705675466,6.3451,85.175,85.13,78.83273567]
[1770705675854,9.70551799,85.2,85.13,78.83273567]
[1770705676258,6.3451,85.175,85.13,78.83273567]
[1770705677664,35.14,85.196,85.13,78.83273567]
[1770705677665,6.3443,85.185,85.13,78.83273567]
[1770705678459,6.3451,85.174,85.13,78.83273567]
[1770705679964,6.3444,85.184,85.13,78.83273567]
[1770705682955,35.14,85.193,85.13,85.18113567]
[1770705683455,6.344,85.189,85.13,78.83273567]
[1770705684463,35.14,85.199,85.13,78.83273567]
[1770705685061,6.3439,85.19,85.13,78.83273567]
[1770705686570,6.3447,85.18,85.13,78.83273567]
[1770705687965,6.3454,85.171,85.13,78.83273567]
[1770705691373,6.3436,85.195,85.13,78.83273567]
[1770705691575,35.14,85.206,85.13,78.83273567]
[1770705692468,35.14,85.205,85.13,78.83273567]
[1770705692669,6.3443,85.185,85.13,78.83273567]
[1770705693065,118.0,85.184,85.13,78.83273567]
[1770705693671,6.3445,85.183,85.13,78.83273567]
[1770705693974,35.14,85.182,85.13,78.83273567]
[1770705695081,35.14,85.199,85.13,78.83273567]
[1770705695779,6.3446,85.182,85.13,78.83273567]
[1770705698682,9.70551799,85.18,85.115,80.31671411]
[1770705699079,35.14,85.179,85.115,80.31671411]
[1770705699280,6.3458,85.165,85.115,80.31671411]
[1770705702985,6.3465,85.156,85.115,80.31671411]
[1770705707182,6.3465,85.156,85.05,12.7087]
[1770705707183,8.33120128,85.155,85.074,80.57155009]
[1770705707381,9.70551799,85.14,85.074,80.57155009]
[1770705707581,18.84799418,85.139,85.074,80.57155009]
[1770705707888,8.33120128,85.138,85.074,80.57155009]
[1770705708084,8.33120128,85.137,85.074,80.57155009]
[1770705708281,6.3496,85.115,85.074,80.57155009]
[1770705708482,10.5167929,85.14,85.074,80.57155009]
[1770705708676,8.45148964,85.139,85.074,80.57155009]
[1770705708890,6.3497,85.114,85.074,80.57155009]
[1770705709088,10.5167929,85.14,85.074,80.57155009]
[1770705709291,8.45343573,85.139,85.074,80.57155009]
[1770705709493,8.45343573,85.138,85.074,80.57155009]
[1770705709684,8.45343573,85.137,85.074,80.57155009]
[1770705709884,6.3487,85.127,85.074,80.57155009]
[1770705710085,8.45343573,85.126,85.074,80.57155009]
[1770705710292,6.3487,85.127,85.074,80.57155009]
[1770705710694,6.3491,85.121,85.074,80.57155009]
[1770705712486,6.3493,85.118,85.074,80.57155009]
[1770705712686,35.14,85.153,85.074,80.57155009]
[1770705712687,10.75939429,85.141,85.074,80.57155009]
[1770705712885,8.44473546,85.14,85.074,80.57155009]
[1770705713089,10.75939429,85.135,85.074,80.57155009]
[1770705713292,8.44473546,85.134,85.074,80.57155009]
[1770705713490,8.44473546,85.133,85.074,80.57155009]
[1770705713690,8.44473546,85.132,85.074,80.57155009]
[1770705713892,10.75939429,85.136,85.074,80.57155009]
[1770705713893,8.44473546,85.131,85.074,80.57155009]
[1770705714086,35.29,85.146,85.074,80.57155009]
[1770705714087,8.44473546,85.13,85.074,80.57155009]
[1770705714290,8.44473546,85.129,85.074,80.57155009]
[1770705714482,8.44473546,85.128,85.074,80.57155009]
[1770705714685,6.35,85.109,85.074,69.87505009]
[1770705714884,8.44473546,85.126,85.024,1.95465672]
[1770705715087,46.04939429,85.137,85.024,1.95465672]
[1770705715088,8.44473546,85.125,85.024,1.95465672]
[1770705715287,8.44473546,85.124,85.024,1.95465672]
[1770705715494,8.44473546,85.123,85.024,1.95465672]
[1770705715695,6.3508,85.099,85.027,6.356]
[1770705716089,10.75939429,85.126,85.027,6.356]
[1770705716090,8.44473546,85.12,85.027,6.356]
[1770705716284,8.44473546,85.119,85.036,6.3554]
[1770705716491,8.44473546,85.126,85.03,9.70551799]
[1770705716687,8.44473546,85.135,85.05,9.70551799]
[1770705716893,8.44473546,85.134,85.045,59.61093605]
[1770705717193,8.44473546,85.133,85.045,59.61093605]
[1770705717396,8.44473546,85.132,85.045,59.61093605]
[1770705717596,8.44473546,85.131,85.045,59.61093605]
[1770705717897,8.44473546,85.13,85.045,59.61093605]
[1770705718190,8.44473546,85.129,85.045,59.61093605]
[1770705718397,8.44473546,85.128,85.045,59.61093605]
[1770705718592,8.44473546,85.127,85.045,59.61093605]
[1770705718797,6.3504,85.104,85.045,59.61093605]
[1770705719304,6.3491,85.121,85.045,59.61093605]
[1770705719789,19.20412975,85.137,85.045,59.61093605]
[1770705719990,10.75939429,85.134,85.045,59.61093605]
[1770705720198,8.44473546,85.133,85.045,59.61093605]
[1770705720385,8.44473546,85.132,85.045,59.61093605]
[1770705720591,6.3491,85.121,85.047,59.86977249]
[1770705721697,6.3491,85.121,85.05,59.87772443]
[1770705722801,118.0,85.13,85.052,59.74495428]
[1770705723600,118.0,85.13,85.066,59.74495428]
[1770705723798,124.3484,85.131,85.066,59.74495428]
[1770705724000,118.0,85.131,85.068,59.7524573]
[1770705724397,46.04939429,85.159,85.05,9.70551799]
[1770705724398,6.3466,85.154,85.071,59.7524573]
[1770705725005,6.3483,85.132,85.071,59.7524573]
[1770705725296,35.29,85.149,85.071,59.7524573]
[1770705725493,35.29,85.147,85.071,59.7524573]
[1770705725692,35.29,85.145,85.071,59.7524573]
[1770705725892,35.29,85.143,85.071,59.7524573]
[1770705726093,8.46318115,85.142,85.071,59.7524573]
[1770705726293,8.46318115,85.141,85.071,59.7524573]
[1770705726495,8.46318115,85.14,85.071,59.7524573]
[1770705726695,6.3483,85.132,85.071,59.7524573]
[1770705726892,35.29,85.137,85.071,59.7524573]
[1770705727102,35.29,85.143,85.071,59.7524573]
[1770705727299,35.29,85.141,85.071,59.7524573]
[1770705728197,35.29,85.145,85.071,59.7524573]
[1770705728495,35.29,85.143,85.071,59.7524573]
[1770705728696,6.3481,85.134,85.071,59.7524573]
[1770705730600,6.3489,85.123,85.071,59.7524573]
[1770705730803,118.0,85.122,85.071,59.7524573]
[1770705731004,118.0,85.123,85.071,59.7524573]
[1770705732804,124.3489,85.123,85.071,59.7524573]
[1770705737813,118.0,85.123,85.071,59.7524573]
[1770705739512,4.08057692,85.12,85.071,59.7524573]
[1770705741308,118.0,85.123,85.071,59.7524573]
[1770705741711,4.08057692,85.12,85.071,59.7524573]
[1770705742216,4.08057692,85.12,85.073,59.81486173]
[1770705743417,4.08057692,85.12,85.078,59.73636143]
[1770705745013,118.0,85.123,85.078,59.73636143]
[1770705745323,4.08057692,85.12,85.078,59.73636143]
[1770705745722,4.08057692,85.12,85.08,59.63572141]
[1770705746024,118.0,85.123,85.08,59.63572141]
[1770705746226,118.0,85.123,85.08,63.71629833]
[1770705746624,118.0,85.123,85.08,59.63572141]
[1770705746920,118.0,85.123,85.08,63.71629833]
[1770705747124,118.0,85.123,85.08,59.63572141]
[1770705747720,118.0,85.123,85.082,59.48496583]
[1770705748321,10.75939429,85.148,85.096,45.11530572]
[1770705748521,8.50522353,85.147,85.096,45.11530572]
[1770705748725,8.50522353,85.146,85.096,45.11530572]
[1770705748926,8.50522353,85.145,85.098,45.11530572]
[1770705749122,8.50522353,85.144,85.098,45.11530572]
[1770705749332,8.50522353,85.143,85.098,45.11530572]
[1770705749627,8.50522353,85.142,85.098,45.11530572]
[1770705749816,8.50522353,85.141,85.098,45.11530572]
[1770705750017,8.50522353,85.14,85.1,45.11530572]
[1770705750223,4.08057692,85.15,85.1,45.11530572]
[1770705750423,8.51218256,85.149,85.1,45.11530572]
[1770705750624,8.51218256,85.148,85.1,45.11530572]
[1770705750928,8.51218256,85.147,85.104,45.11530572]
[1770705751121,42.33639142,85.156,85.104,45.11530572]
[1770705751122,8.51218256,85.146,85.104,45.11530572]
[1770705751327,8.256e-05,85.145,85.104,45.11530572]
[1770705751526,4.08057692,85.16,85.104,45.11530572]
[1770705751828,10.75939429,85.164,85.104,45.11530572]
[1770705752124,15.84271728,85.17,85.104,45.11530572]
[1770705752125,4.08057692,85.16,85.104,45.11530572]
[1770705752720,4.08057692,85.16,85.1,4.08057692]
[1770705752721,4.08057692,85.16,85.116,45.11530572]
[1770705752922,19.9232942,85.17,85.116,45.11530572]
[1770705753528,19.9232942,85.17,85.128,45.11530572]
[1770705753724,4.08057692,85.16,85.128,45.11530572]
[1770705754229,15.84271728,85.17,85.128,45.11530572]
[1770705754230,19.9232942,85.17,85.128,45.11530572]
[1770705754628,4.08057692,85.16,85.128,45.11530572]
[1770705755824,42.33639142,85.149,85.102,51.46570572]
[1770705756029,4.08057692,85.14,85.102,51.46570572]
[1770705756227,46.04939429,85.173,85.06,326.29]
[1770705756228,42.33639142,85.168,85.061,45.11530572]
[1770705756432,4.08057692,85.14,85.071,45.11530572]
[1770705756934,4.08057692,85.14,85.09,45.11530572]
[1770705757133,4.08057692,85.15,85.09,49.19588264]
[1770705757737,4.08057692,85.15,85.09,45.11530572]
[1770705758731,4.08057692,85.15,85.105,6.3502]
[1770705758942,4.08057692,85.15,85.106,45.11530572]
[1770705761339,4.08057692,85.15,85.111,45.11530572]
[1770705761545,4.08057692,85.16,85.111,45.11530572]
[1770705762036,4.08057692,85.16,85.113,45.11530572]
[1770705762241,4.08057692,85.15,85.113,45.11530572]
[1770705764740,4.08057692,85.15,85.115,45.11530572]
[1770705765343,4.08057692,85.14,85.115,45.11530572]
[1770705766233,42.33639142,85.158,85.115,45.11530572]
[1770705766439,8.35349891,85.157,85.115,45.11530572]
[1770705766639,8.35349891,85.159,85.115,45.11530572]
[1770705766833,8.35349891,85.158,85.115,45.11530572]
[1770705767032,8.35349891,85.157,85.115,45.11530572]
[1770705767238,8.35349891,85.159,85.115,45.11530572]
[1770705767544,8.35349891,85.158,85.115,45.11530572]
[1770705767743,42.33639142,85.171,85.115,45.11530572]
[1770705767744,4.08057692,85.16,85.115,45.11530572]
[1770705768246,6.3448,85.179,85.057,21.6498715]
[1770705768247,8.35349891,85.168,85.121,45.11530572]
[1770705768446,4.08057692,85.17,85.121,45.11530572]
[1770705768447,8.35349891,85.167,85.121,45.11530572]
[1770705768646,8.35349891,85.166,85.121,45.11530572]
[1770705768846,8.35349891,85.169,85.121,45.11530572]
[1770705769048,4.08057692,85.17,85.126,45.11530572]
[1770705769249,4.08057692,85.18,85.126,45.11530572]
[1770705770749,4.08057692,85.18,85.11,4.08057692]
[1770705770750,4.08057692,85.18,85.131,45.13701213]
[1770705772052,47.92939067,85.166,85.105,45.13701213]
[1770705772252,4.08057692,85.14,85.105,45.13701213]
[1770705772444,4.08057692,85.15,85.105,45.13701213]
[1770705772750,4.08057692,85.15,85.108,45.13701213]
[1770705773755,4.08057692,85.15,85.08,4.08057692]
[1770705773756,4.08057692,85.15,85.113,45.13701213]
[1770705774247,4.07810262,85.16,85.117,51.48631213]
[1770705774650,4.07810262,85.15,85.117,51.48631213]
[1770705774953,6.3444,85.184,85.117,51.48631213]
[1770705774954,4.07810262,85.16,85.117,51.48631213]
[1770705775648,4.07810262,85.15,85.117,51.48631213]
[1770705776241,4.07810262,85.15,85.117,45.13701213]
[1770705776442,4.07810262,85.15,85.104,45.13701213]
[1770705777254,4.07810262,85.14,85.09,45.13701213]
[1770705777460,4.07810262,85.13,85.09,45.13701213]
[1770705778962,4.07810262,85.15,85.09,45.13701213]
[1770705779161,4.07810262,85.14,85.09,45.13701213]
[1770705779748,4.07810262,85.14,85.098,45.13701213]
[1770705780750,4.07810262,85.12,85.087,45.13701213]
[1770705782160,13.97198594,85.164,85.087,45.13701213]
[1770705782161,47.92939067,85.154,85.087,45.13701213]
[1770705782354,4.07810262,85.13,85.087,45.13701213]
[1770705782847,4.07810262,85.14,85.09,45.13701213]
[1770705783052,4.07810262,85.15,85.09,45.13701213]
[1770705783253,47.92939067,85.167,85.09,45.13701213]
[1770705783554,4.07810262,85.16,85.101,45.13701213]
[1770705784855,4.07810262,85.16,85.117,45.13701213]
[1770705787664,4.07810262,85.17,85.128,45.13701213]
[1770705789162,4.07810262,85.17,85.134,45.13701213]
[1770705789352,47.92939067,85.139,85.078,45.13701213]
[1770705789558,4.07810262,85.11,85.078,45.13701213]
[1770705789756,4.07810262,85.1,85.047,45.13701213]
[1770705789954,4.07810262,85.11,85.047,45.13701213]
[1770705790366,4.07810262,85.1,85.047,45.13701213]
[1770705790863,4.07810262,85.11,85.047,45.13701213]
[1770705791264,71.75578062,85.316,85.07,45.13701213]
[1770705791265,47.92939067,85.14,85.07,45.13701213]
[1770705791460,4.07810262,85.12,85.07,45.13701213]
[1770705792263,47.92939067,85.137,85.074,45.13701213]
[1770705792564,4.07810262,85.14,85.074,45.13701213]
[1770705792766,4.07810262,85.12,85.074,45.13701213]
[1770705793376,4.07810262,85.12,85.076,6.3524]
[1770705793670,4.07810262,85.12,85.077,45.13701213]
[1770705794266,47.92939067,85.149,85.084,45.13701213]
[1770705794565,4.07810262,85.14,85.084,45.13701213]
[1770705794964,47.92939067,85.146,85.086,45.13701213]
[1770705795268,47.92939067,85.144,85.086,45.13701213]
[1770705796069,8.30737613,85.143,85.086,45.13701213]
[1770705796270,47.92939067,85.144,85.086,45.13701213]
[1770705798371,56.2367668,85.159,85.09,45.13701213]
[1770705798570,47.92939067,85.159,85.09,45.13701213]
[1770705798766,8.30737613,85.168,85.09,45.13701213]
[1770705799071,8.30737613,85.173,85.106,45.13701213]
[1770705799266,8.30737613,85.172,85.106,45.13701213]
[1770705799470,47.92939067,85.174,85.106,45.13701213]
[1770705800072,47.92939067,85.174,85.13,47.95570861]
[1770705800972,8.30737613,85.189,85.132,47.95570861]
[1770705801268,60.09793789,85.19,85.132,47.95570861]
[1770705802575,55.92323665,85.189,85.132,47.95570861]
[1770705802777,55.92323665,85.188,85.132,47.95570861]
[1770705802969,8.30737613,85.187,85.132,47.95570861]
[1770705803174,8.30737613,85.187,85.131,6.3483]
[1770705803175,47.61586052,85.188,85.136,47.71649343]
[1770705803376,55.92323665,85.202,85.136,47.71649343]
[1770705803574,55.92323665,85.201,85.136,47.71649343]
[1770705803776,8.30737613,85.2,85.136,47.71649343]
[1770705803973,8.30737613,85.199,85.136,47.71649343]
[1770705804174,47.61586052,85.201,85.149,47.71649343]
[1770705804570,10.75682177,85.226,85.149,47.71649343]
[1770705804571,8.30737613,85.219,85.149,47.71649343]
[1770705804776,47.61586052,85.231,85.12,9.7072936]
[1770705804777,8.30737613,85.23,85.166,47.71649343]
[1770705804976,8.30737613,85.229,85.166,47.71649343]
[1770705805273,47.61586052,85.231,85.166,47.71649343]
[1770705805679,47.61586052,85.231,85.173,47.71649343]
[1770705807673,9.7072936,85.22,85.121,47.71649343]
[1770705807878,47.61586052,85.219,85.121,47.71649343]
[1770705808480,47.61586052,85.219,85.1,9.7072936]
[1770705808481,47.61586052,85.211,85.142,6.3475]
[1770705808777,47.61586052,85.211,85.142,54.06399343]
[1770705809768,47.61586052,85.205,85.142,54.06399343]
[1770705811380,47.61586052,85.205,85.153,47.71649343]
[1770705814608,55.92323665,85.204,85.153,47.71649343]
[1770705814800,55.92323665,85.203,85.153,47.71649343]
[1770705815099,8.30737613,85.202,85.153,47.71649343]
[1770705815299,47.61586052,85.203,85.153,47.71649343]
[1770705815602,8.30737613,85.219,85.16,47.71649343]
[1770705815794,35.29,85.251,85.16,47.71649343]
[1770705815998,10.75682177,85.279,85.163,47.71649343]
[1770705816196,12.79894946,85.282,85.201,47.71649343]
[1770705816395,10.75682177,85.284,85.201,47.71649343]
[1770705816596,9.7072936,85.27,85.201,47.71649343]
[1770705817694,57.32315412,85.27,85.201,47.71649343]
[1770705817899,57.32315412,85.27,85.201,54.05949343]
[1770705820005,47.61586052,85.249,85.184,47.71649343]
[1770705822306,2.04164846,85.292,85.168,54.06199343]
[1770705822307,47.61586052,85.244,85.168,54.06199343]
[1770705824699,47.61586052,85.239,85.168,47.71649343]
[1770705824908,47.61586052,85.229,85.168,47.71649343]
[1770705825800,53.95686052,85.229,85.168,47.71649343]
[1770705826511,47.61586052,85.216,85.153,47.71649343]
[1770705827510,47.61586052,85.216,85.155,6.3465]
[1770705829402,47.61586052,85.213,85.153,47.71649343]
[1770705830213,61.43944985,85.21,85.138,52.78682919]
[1770705830897,51.73215625,85.197,85.138,52.78682919]
[1770705831613,51.73215625,85.196,85.138,52.78682919]
[1770705831912,51.73215625,85.193,85.138,52.78682919]
[1770705832207,51.73215625,85.19,85.123,52.78682919]
[1770705832507,61.43944985,85.19,85.122,6.3489]
[1770705832912,61.43944985,85.19,85.122,59.13572919]
[1770705834813,51.73215625,85.187,85.122,59.13572919]
[1770705836417,9.7072936,85.19,85.133,52.78682919]
[1770705836716,58.07565625,85.196,85.133,52.78682919]
[1770705837012,58.07565625,85.196,85.135,52.78682919]
[1770705837209,58.07565625,85.196,85.04,9.7072936]
[1770705837210,51.73215625,85.174,85.104,52.78682919]
[1770705837512,51.73215625,85.169,85.106,52.78682919]
[1770705838114,51.73215625,85.167,85.106,52.78682919]
[1770705838712,51.73215625,85.163,85.106,52.78682919]
[1770705839712,51.73215625,85.16,85.106,52.78682919]
[1770705841024,51.73215625,85.16,85.106,59.13702919]
[1770705841816,24.66482023,85.169,85.106,59.13702919]
[1770705842019,51.73215625,85.175,85.12,52.78682919]
[1770705842216,8.83597421,85.202,85.12,52.78682919]
[1770705842423,51.73215625,85.205,85.12,52.78682919]
[1770705842815,8.83597421,85.204,85.146,52.78682919]
[1770705843016,8.83597421,85.209,85.146,52.78682919]
[1770705843321,8.83597421,85.208,85.146,52.78682919]
[1770705843520,58.07395625,85.218,85.15,52.78682919]
[1770705843726,60.56813046,85.217,85.15,52.78682919]
[1770705843921,60.56813046,85.216,85.15,52.78682919]
[1770705844124,8.83597421,85.215,85.15,52.78682919]
[1770705844317,51.73215625,85.209,85.102,52.78682919]
[1770705844622,62.38236581,85.199,85.102,52.78682919]
[1770705844823,51.73215625,85.197,85.128,52.78682919]
[1770705845021,51.73215625,85.195,85.128,52.78682919]
[1770705845329,51.73215625,85.189,85.128,52.78682919]
[1770705845522,51.73215625,85.183,85.128,52.78682919]
[1770705846821,51.73215625,85.183,85.13,52.78682919]
[1770705848532,51.73215625,85.183,85.08,44.9972936]
[1770705848533,61.43944985,85.18,85.112,52.78682919]
[1770705849821,51.73215625,85.18,85.127,52.78682919]
[1770705852818,51.73215625,85.195,85.129,52.78682919]
[1770705854830,51.73215625,85.195,85.143,6.3474]
[1770705855029,51.73215625,85.195,85.129,52.78682919]
[1770705855535,51.73215625,85.189,85.129,52.78682919]
[1770705855832,51.73215625,85.18,85.129,52.78682919]
[1770705857923,51.73215625,85.169,85.084,52.78682919]
[1770705858125,51.73215625,85.147,85.084,52.78682919]
[1770705858633,51.73215625,85.145,85.084,52.78682919]
[1770705858834,51.73215625,85.144,85.084,52.78682919]
[1770705862438,53.55316051,85.139,85.084,52.78682919]
[1770705864739,10.65020956,85.173,85.024,100.83015672]
[1770705864740,54.69165985,85.106,85.024,1.95465672]
[1770705864945,54.69165985,85.106,85.024,57.9323113]
[1770705864946,9.71524707,85.09,85.024,57.9323113]
[1770705865130,54.81961485,85.089,85.024,57.9323113]
[1770705865437,54.81961485,85.109,85.024,57.9323113]
[1770705866131,54.92625034,85.107,85.026,55.97765458]
[1770705867231,50.47721896,85.105,85.026,55.97765458]
[1770705867838,50.47721896,85.105,85.028,55.97765458]
[1770705869235,61.11770597,85.1,85.028,55.97765458]
[1770705870740,51.41778313,85.092,85.028,55.97765458]
[1770705872828,51.41778313,85.092,85.03,55.97765458]
[1770705873342,51.54973315,85.107,85.045,6.3547]
[1770705873540,51.54973315,85.107,85.046,55.97765458]
[1770705874240,6.3502,85.106,85.046,55.97765458]
[1770705874441,51.64298366,85.106,85.046,55.97765458]
[1770705878137,51.64298366,85.106,85.049,55.97765458]
[1770705878332,52.74789435,85.12,85.049,55.97765458]
[1770705879044,52.72701115,85.119,85.051,55.97765458]
[1770705879840,52.72701115,85.119,85.057,55.97765458]
[1770705880730,52.72701115,85.119,85.059,55.97765458]
[1770705880941,52.89983875,85.136,85.059,55.97765458]
[1770705881334,52.89983875,85.136,85.082,6.3519]
[1770705881531,53.00634983,85.131,85.064,55.97765458]
[1770705883241,53.23603564,85.128,85.069,62.33055458]
[1770705884538,53.23603564,85.128,85.08,6.3521]
[1770705884744,53.23603564,85.128,85.08,62.32975458]
[1770705884945,53.23603564,85.128,85.08,55.97765458]
[1770705887641,97.0,85.138,85.082,55.97765458]
[1770705887846,97.0,85.139,85.082,55.97765458]
[1770705888345,150.85778572,85.139,85.082,55.97765458]
[1770705888647,53.83946503,85.138,85.082,55.97765458]
[1770705888842,53.83946503,85.138,85.084,55.97765458]
[1770705889948,53.83946503,85.138,85.088,6.3515]
[1770705890247,53.83946503,85.138,85.084,55.97765458]
[1770705891249,53.83946503,85.138,85.071,55.40514791]
[1770705891651,53.02483445,85.135,85.076,55.40514791]
[1770705892152,53.11876768,85.151,85.076,55.40514791]
[1770705892353,53.11876768,85.149,85.095,6.351]
[1770705893153,53.19219108,85.147,85.094,55.40514791]
[1770705894448,53.19219108,85.147,85.03,98.8693]
[1770705894449,56.02710385,85.139,85.064,55.40514791]
[1770705894652,56.02710385,85.134,85.064,55.40514791]
[1770705894953,64.6825934,85.134,85.064,55.40514791]
[1770705895848,56.02710385,85.124,85.064,55.40514791]
[1770705896751,56.02710385,85.124,85.069,55.40514791]
[1770705897052,56.02710385,85.137,85.069,55.40514791]
[1770705897347,56.02710385,85.137,85.08,55.40514791]
[1770705897548,56.02710385,85.147,85.08,55.40514791]
[1770705898253,55.6571568,85.145,85.08,55.40514791]
[1770705898453,64.33566031,85.145,85.08,55.40514791]
[1770705898647,55.6571568,85.145,85.08,55.40514791]
[1770705898855,55.6571568,85.145,85.082,55.40514791]
[1770705899657,8.67850351,85.144,85.082,55.40514791]
[1770705899859,8.67850351,85.144,85.092,55.40514791]
[1770705900055,8.67850351,85.153,85.092,55.40514791]
[1770705900255,8.67850351,85.152,85.092,55.40514791]
[1770705900456,8.67850351,85.151,85.092,55.40514791]